bitfinex/quotes_ETHUSD_20260120
["timestamp","ask_amount","ask_price","bid_price","bid_amount"]
[1768919785552,3.319,3063.2,3062.5,0.002]
[1768919786068,6.52890672,3063.3,3062.5,0.002]
[1768919786556,2.14277899,3063.5,3062.5,0.002]
[1768919786557,3.943,3063.4,3062.5,0.002]
[1768919786715,7.02552007,3063.5,3062.5,0.002]
[1768919786915,3.339638,3063.4,3062.5,0.002]
[1768919787119,3.26338804,3064.3,3062.5,0.002]
[1768919787365,3.58972684,3064.3,3062.5,0.002]
[1768919788072,3.58973721,3064.3,3062.5,0.002]
[1768919788369,5.555906,3064.2,3062.5,0.002]
[1768919788532,6.03015492,3064.0,3062.5,0.002]
[1768919788867,0.497,3064.0,3062.5,0.002]
[1768919789021,2.556,3063.9,3062.5,0.002]
[1768919789222,0.3053,3063.8,3062.5,0.002]
[1768919789556,3.58972844,3064.3,3062.5,0.002]
[1768919789740,4.190496,3065.2,3062.5,0.002]
[1768919789942,4.190496,3065.2,3062.6,0.502]
[1768919789943,6.967929,3064.7,3062.6,0.502]
[1768919790556,2.166068,3065.1,3062.6,0.502]
[1768919790854,11.374041,3064.9,3062.7,0.502]
[1768919791019,11.374041,3064.9,3062.6,6.05196189]
[1768919791359,6.26372522,3064.3,3062.5,0.002]
[1768919791557,5.843433,3064.1,3062.5,0.002]
[1768919791853,6.26372522,3064.0,3062.5,0.002]
[1768919792018,5.02282631,3064.1,3062.1,0.002]
[1768919792019,11.374041,3063.7,3062.1,0.002]
[1768919792219,6.26372522,3063.8,3062.1,0.002]
[1768919792220,2.15913,3063.5,3062.1,0.002]
[1768919792450,0.497,3063.6,3062.1,0.002]
[1768919792619,2.10215,3063.5,3062.1,0.002]
[1768919792822,0.259915,3063.4,3062.1,0.002]
[1768919793034,7.43188,3063.5,3062.1,0.002]
[1768919793332,2.44915,3063.5,3062.2,3.26559055]
[1768919793553,4.752445,3063.4,3062.1,0.002]
[1768919793754,4.752445,3063.4,3062.1,0.504]
[1768919793959,4.752445,3063.4,3062.1,0.002]
[1768919793960,2.475445,3063.4,3062.1,0.002]
[1768919794167,11.374041,3063.2,3062.1,0.002]
[1768919794373,2.642,3063.2,3062.1,0.002]
[1768919794580,1.22681657,3063.3,3062.1,0.002]
[1768919794887,6.52848048,3063.5,3062.1,0.002]
[1768919795099,4.648511,3063.4,3062.1,0.002]
[1768919795278,4.648511,3063.4,3062.1,0.504]
[1768919795481,9.79336008,3063.3,3062.1,0.002]
[1768919795781,1.44418711,3063.2,3062.1,0.002]
[1768919796144,2.512511,3063.2,3062.1,0.002]
[1768919796477,17.40419592,3062.8,3060.9,0.504]
[1768919796676,0.0008,3062.4,3061.0,3.26683781]
[1768919796983,8.94698123,3062.0,3059.4,6.05196189]
[1768919797280,8.94698123,3062.0,3060.2,3.26767545]
[1768919797281,6.03015492,3061.8,3060.2,3.26767545]
[1768919797488,6.03015492,3061.8,3060.2,0.65372284]
[1768919797489,0.60301549,3061.7,3060.2,0.65372284]
[1768919797784,3.142005,3062.2,3060.2,3.92146459]
[1768919798091,17.40419592,3062.0,3060.2,0.65372284]
[1768919798254,6.26372522,3061.7,3060.0,0.0016]
[1768919798611,6.26372522,3061.3,3060.0,0.0016]
[1768919798750,6.26372522,3061.1,3058.9,3.26905102]
[1768919799095,0.0008,3060.4,3059.0,0.501]
[1768919799438,0.0008,3060.4,3060.0,0.002]
[1768919799641,0.0008,3060.4,3059.0,3.77002237]
[1768919799981,0.0008,3060.4,3059.1,0.37700224]
[1768919800164,0.0008,3060.4,3059.2,0.501]
[1768919800345,0.0008,3060.7,3059.2,6.55296189]
[1768919800672,0.0008,3060.7,3059.2,6.05196189]
[1768919800878,0.0008,3060.7,3059.1,0.37700224]
[1768919801051,6.35773909,3060.7,3058.7,3.27131706]
[1768919801258,6.35773909,3060.7,3058.7,0.002]
[1768919801478,6.35773909,3060.7,3058.9,3.26913955]
[1768919801681,6.5346664,3060.6,3058.9,3.26913955]
[1768919801872,2.278582,3060.5,3058.9,3.26913955]
[1768919802070,6.35773909,3060.7,3059.0,3.19974902]
[1768919802071,0.0008,3060.7,3059.0,3.19974902]
[1768919802247,3.26806695,3060.7,3059.1,0.501]
[1768919802580,6.743771,3060.6,3059.1,0.501]
[1768919802781,6.5353339,3060.7,3059.1,0.501]
[1768919802782,0.0008,3060.7,3059.1,0.501]
[1768919803284,3.26807903,3060.7,3059.2,0.501]
[1768919803450,0.3268079,3060.6,3059.3,0.501]
[1768919803649,3.26743996,3060.5,3059.3,0.501]
[1768919804248,3.59414905,3060.6,3059.0,0.37701395]
[1768919804249,3.59414492,3060.6,3059.4,0.501]
[1768919804547,0.3268079,3060.6,3059.4,0.501]
[1768919804773,0.0008,3060.7,3059.4,0.501]
[1768919805583,0.0008,3060.7,3059.2,0.502]
[1768919806769,0.0008,3060.7,3059.3,0.502]
[1768919806981,0.0008,3060.7,3059.0,3.26897225]
[1768919807283,2.432,3060.6,3059.1,0.82889723]
[1768919807487,2.432,3060.6,3059.1,0.32689723]
[1768919807684,6.53487992,3060.5,3059.0,0.502]
[1768919807988,6.53487992,3060.5,3059.1,3.26893525]
[1768919808186,6.53487992,3060.5,3058.7,0.002]
[1768919808187,11.374041,3060.4,3058.7,0.002]
[1768919808372,17.697588,3060.3,3058.7,0.002]
[1768919808581,6.323547,3060.0,3058.7,0.002]
[1768919808788,16.3371998,3060.5,3058.4,0.0016]
[1768919808789,10.075815,3059.8,3058.4,0.0016]
[1768919808969,11.374041,3059.5,3057.9,0.501]
[1768919809168,0.0008,3058.8,3057.8,0.501]
[1768919809556,0.0008,3058.8,3056.5,5.94548005]
[1768919809557,9.80856773,3058.8,3056.5,5.94548005]
[1768919809756,5.152797,3058.7,3057.0,0.501]
[1768919809991,1.16921088,3058.6,3057.0,0.501]
[1768919810553,0.0008,3058.8,3057.0,0.501]
[1768919811173,6.53931182,3058.8,3057.1,0.502]
[1768919811353,0.0008,3058.8,3057.1,0.502]
[1768919811754,0.0008,3058.8,3056.7,5.94388005]
[1768919811989,6.323547,3058.4,3056.5,0.0016]
[1768919812223,8.18953,3058.2,3056.5,0.0016]
[1768919812386,1.7697588,3058.3,3056.6,0.502]
[1768919812387,17.697588,3058.3,3056.6,0.502]
[1768919812575,6.323547,3058.0,3056.5,0.0016]
[1768919812763,11.374041,3057.8,3056.5,0.0016]
[1768919813185,0.2335703,3058.6,3056.5,0.0016]
[1768919813186,6.323547,3058.5,3056.5,0.0016]
[1768919813484,0.6323547,3058.4,3056.7,3.27142791]
[1768919813666,0.6323547,3058.4,3056.5,3.27329211]
[1768919813667,6.53979464,3058.2,3056.5,0.0016]
[1768919813852,3.26989732,3058.2,3056.8,0.501]
[1768919814057,3.26982232,3058.3,3056.8,0.501]
[1768919814284,0.3902177,3058.2,3056.8,0.501]
[1768919814589,0.6323547,3058.4,3056.8,0.501]
[1768919814887,9.14708207,3059.1,3056.8,0.501]
[1768919814888,0.0008,3058.8,3056.9,5.94388005]
[1768919815059,0.0008,3058.8,3057.0,5.94388005]
[1768919815389,0.0008,3059.1,3057.4,5.94388005]
[1768919815586,3.90043863,3059.9,3057.9,5.94388005]
[1768919815888,3.76488822,3061.1,3058.6,2.503871]
[1768919816090,3.2671365,3060.8,3058.6,5.94388005]
[1768919816278,0.498,3061.6,3058.9,5.94388005]
[1768919816608,3.26740887,3061.5,3059.4,5.94388005]
[1768919816760,3.26740887,3061.5,3059.5,0.501]
[1768919816958,0.32674089,3061.4,3059.6,0.64448801]
[1768919817265,0.001,3061.5,3059.8,2.82273507]
[1768919817478,0.001,3061.5,3059.9,5.94388005]
[1768919817681,0.0008,3062.4,3059.6,0.64448801]
[1768919817682,0.0008,3062.4,3060.4,9.80264016]
[1768919817893,0.0008,3062.4,3060.5,0.501]
[1768919818267,0.0008,3062.4,3060.4,3.26754672]
[1768919818458,0.0008,3062.4,3059.9,3.26807599]
[1768919818459,11.374041,3062.2,3059.9,3.26807599]
[1768919818664,11.374041,3062.1,3060.0,3.7689555]
[1768919818871,3.581017,3062.1,3060.0,0.501]
[1768919819078,6.323547,3062.2,3060.3,3.26765324]
[1768919819279,2.503,3062.1,3059.2,8.76661512]
[1768919819478,11.374041,3061.9,3059.3,1.37766151]
[1768919819682,6.53189196,3061.9,3059.6,3.26834265]
[1768919820057,6.53189196,3061.9,3059.5,6.53701584]
[1768919820058,11.374041,3061.8,3059.5,6.53701584]
[1768919820263,2.2,3061.7,3059.6,0.501]
[1768919820697,2.2,3061.7,3059.4,3.26860735]
[1768919820862,6.331461,3061.5,3059.5,0.82786074]
[1768919821066,0.50227351,3061.6,3059.5,0.82786074]
[1768919821289,10.715651,3061.8,3059.6,0.501]
[1768919821507,10.715651,3061.8,3059.5,0.32686074]
[1768919821508,11.374041,3061.7,3059.5,0.32686074]
[1768919821671,3.266266,3061.6,3059.7,6.53658854]
[1768919821871,6.532532,3061.6,3059.7,6.53658854]
[1768919822190,0.0008,3062.4,3060.3,8.76661512]
[1768919822508,0.0008,3062.4,3059.7,19.16420642]
[1768919822509,3.150564,3062.3,3060.4,0.87666151]
[1768919822664,6.323547,3062.3,3059.7,9.80488281]
[1768919822865,6.323547,3062.3,3059.8,0.501]
[1768919822866,3.612624,3062.2,3059.8,0.501]
[1768919823108,3.612624,3062.2,3059.5,0.32686074]
[1768919823109,6.323547,3061.6,3059.5,0.32686074]
[1768919823309,11.374041,3061.3,3059.2,3.26882449]
[1768919823466,11.374041,3061.1,3059.3,0.501]
[1768919823667,11.374041,3061.1,3058.3,3.26972522]
[1768919823668,6.53381246,3061.0,3059.4,3.26860546]
[1768919823868,3.26690623,3061.0,3059.5,0.501]
[1768919824081,3.03215,3061.3,3059.5,0.501]
[1768919824286,0.95652069,3061.2,3059.6,0.70382202]
[1768919824468,3.26561591,3062.3,3059.8,5.94388005]
[1768919824671,0.0008,3062.4,3060.0,13.87618905]
[1768919824975,0.0008,3062.4,3060.0,5.94388005]
[1768919824976,3.26622274,3062.4,3060.0,5.94388005]
[1768919825287,3.26622274,3062.4,3059.9,0.128]
[1768919825288,0.0008,3062.4,3060.4,5.94388005]
[1768919825475,3.26430728,3063.5,3061.1,6.07188005]
[1768919825678,6.323547,3064.3,3061.3,9.79975827]
[1768919826073,9.79048362,3064.2,3061.4,0.501]
[1768919826586,9.79048362,3064.2,3061.5,6.07188005]
[1768919826587,3.26349454,3064.2,3061.5,6.07188005]
[1768919826902,3.26349454,3064.2,3061.8,2.82273507]
[1768919826903,0.32634945,3064.1,3061.8,2.82273507]
[1768919827108,3.365,3064.0,3061.6,0.57029236]
[1768919827410,3.365,3064.0,3061.7,0.501]
[1768919827575,3.908318,3063.9,3061.7,0.501]
[1768919827927,8.37854607,3063.9,3061.7,3.26615105]
[1768919828067,6.505939,3063.7,3061.8,0.501]
[1768919828273,0.32634945,3064.1,3061.8,0.501]
[1768919828274,0.32634945,3064.1,3061.9,5.94388005]
[1768919828475,3.2642899,3064.4,3061.9,5.94388005]
[1768919828690,6.5275798,3064.4,3062.0,0.128]
[1768919828972,0.001,3064.4,3062.2,0.128]
[1768919829284,0.001,3064.4,3062.3,0.501]
[1768919829485,3.26432796,3064.4,3061.9,5.94388005]
[1768919829689,3.58984158,3064.3,3062.2,9.79687806]
[1768919829890,0.3264328,3064.3,3062.2,9.79687806]
[1768919830404,0.001,3064.4,3062.4,6.07188005]
[1768919830607,0.001,3064.4,3062.9,6.07188005]
[1768919830811,0.001,3064.4,3063.0,0.501]
[1768919831004,0.001,3064.4,3063.1,0.501]
[1768919831215,0.001,3064.4,3062.5,0.128]
[1768919831392,0.001,3064.4,3062.6,0.79607351]
[1768919831596,3.26428339,3064.4,3062.7,0.501]
[1768919831910,0.001,3064.4,3062.8,3.26498628]
[1768919832112,0.001,3064.4,3062.2,5.94388005]
[1768919832316,11.374041,3064.3,3062.0,0.59438801]
[1768919832634,2.0,3064.3,3062.1,3.76668973]
[1768919832799,4.267601,3064.3,3061.5,5.94388005]
[1768919833121,3.48,3064.1,3062.3,3.26548368]
[1768919833281,0.001,3064.4,3062.4,0.501]
[1768919833591,0.001,3064.4,3062.7,6.53011985]
[1768919833794,0.001,3064.4,3062.8,0.65301199]
[1768919833985,0.001,3064.4,3062.8,9.79487507]
[1768919834184,0.001,3064.4,3062.9,0.5]
[1768919834600,3.26125949,3066.3,3063.1,5.94388005]
[1768919834785,11.374041,3066.2,3063.1,5.94388005]
[1768919834985,9.78377847,3066.3,3063.1,5.94388005]
[1768919835211,11.374041,3066.1,3063.2,0.60718801]
[1768919835424,0.2335703,3065.5,3063.2,0.60718801]
[1768919835634,11.374041,3065.2,3063.3,0.5]
[1768919835786,3.26253629,3065.1,3063.4,0.5]
[1768919835986,3.26253629,3065.1,3063.1,8.148903]
[1768919835987,3.225138,3064.8,3063.1,8.148903]
[1768919836424,3.225138,3064.8,3062.8,8.148903]
[1768919836425,9.29376095,3064.7,3062.8,8.148903]
[1768919836604,9.06019065,3064.7,3062.9,0.5]
[1768919836780,3.225138,3064.5,3062.9,0.5]
[1768919836985,3.225138,3064.5,3063.1,8.148903]
[1768919837328,3.225138,3064.5,3063.1,0.5]
[1768919837842,3.225138,3064.3,3063.1,0.5]
[1768919837998,3.225138,3064.3,3062.0,3.2657565]
[1768919838200,3.225138,3064.0,3062.1,0.5]
[1768919838398,3.225138,3064.0,3062.1,3.76564974]
[1768919838721,2.586,3064.0,3062.1,0.5]
[1768919838923,2.586,3064.0,3061.8,3.2660414]
[1768919839105,3.225138,3063.8,3061.9,0.82660414]
[1768919839286,3.225138,3063.8,3061.6,3.26623424]
[1768919839486,3.225138,3063.5,3061.4,3.26641211]
[1768919839687,3.225138,3063.2,3061.9,0.002]
[1768919840127,3.05630537,3063.1,3061.9,0.002]
[1768919840303,6.47102588,3062.9,3060.5,0.59438801]
[1768919840489,6.23745558,3062.5,3060.3,0.5]
[1768919840688,6.23745558,3062.5,3059.5,9.60487135]
[1768919840689,3.225138,3062.4,3059.5,9.60487135]
[1768919840888,3.225138,3062.2,3060.3,0.002]
[1768919841090,6.54308612,3063.0,3060.5,3.26743996]
[1768919841315,1.66615242,3062.9,3060.6,0.376744]
[1768919841520,3.225138,3062.8,3060.6,0.376744]
[1768919841696,6.53082548,3062.4,3060.6,0.876744]
[1768919841897,6.53082548,3062.4,3060.3,0.002]
[1768919841898,3.225138,3062.3,3060.3,0.002]
[1768919842098,0.2335703,3062.2,3060.4,0.5]
[1768919842324,3.225138,3062.1,3060.3,0.002]
[1768919842624,0.2335703,3062.1,3060.3,0.502]
[1768919842840,0.496,3062.3,3060.6,6.534605]
[1768919843129,0.35183997,3062.2,3060.7,0.6534605]
[1768919843326,0.35183997,3062.2,3060.3,0.002]
[1768919843529,0.35183997,3062.2,3060.4,0.5]
[1768919843885,9.79719798,3062.1,3060.3,0.002]
[1768919844091,0.2335703,3061.8,3060.3,0.002]
[1768919844449,3.225138,3061.9,3060.3,0.002]
[1768919844591,0.35183997,3062.2,3060.4,7.03509344]
[1768919844592,6.53106825,3061.8,3060.4,7.03509344]
[1768919844790,6.53106825,3061.8,3060.5,0.70370934]
[1768919845487,6.53106825,3061.8,3060.6,0.499]
[1768919845827,9.79712281,3061.8,3060.6,3.76624065]
[1768919846029,6.53106825,3061.8,3060.7,0.77373768]
[1768919847128,6.53106825,3061.8,3060.8,0.499]
[1768919847129,9.79714848,3061.8,3060.8,0.499]
[1768919847337,9.79714848,3061.8,3060.3,0.002]
[1768919847338,0.2335703,3061.4,3060.3,0.002]
[1768919847542,0.496,3061.3,3059.3,3.26865022]
[1768919847693,9.06019065,3061.5,3059.4,0.32686502]
[1768919847694,6.23745558,3061.5,3059.4,0.32686502]
[1768919847899,3.225138,3061.6,3059.2,6.5376569]
[1768919848230,6.23745558,3061.5,3059.3,0.499]
[1768919848529,3.225138,3061.4,3059.3,0.499]
[1768919848741,3.26605264,3061.8,3059.3,6.83546037]
[1768919848900,0.32660526,3061.7,3059.4,0.499]
[1768919849599,3.225138,3061.6,3059.5,0.499]
[1768919849902,6.53274538,3061.5,3059.6,3.26840109]
[1768919850252,6.53274538,3061.5,3059.7,0.499]
[1768919850253,3.225138,3061.4,3059.7,0.499]
[1768919850709,3.225138,3061.4,3059.5,3.26846196]
[1768919850904,0.97578834,3061.3,3059.6,0.8268462]
[1768919851115,3.225138,3061.2,3059.6,0.8268462]
[1768919851695,0.97578834,3061.3,3059.6,0.8268462]
[1768919851901,0.82260526,3061.7,3059.6,0.8268462]
[1768919851902,0.32660526,3061.7,3059.7,9.80488281]
[1768919852130,0.496,3062.0,3059.7,9.80488281]
[1768919852613,6.53106825,3061.9,3059.7,9.80488281]
[1768919852933,0.001,3061.8,3059.8,0.002]
[1768919853839,6.23745558,3061.6,3059.8,0.002]
[1768919854023,16.28977528,3061.7,3059.5,0.002]
[1768919854024,3.225138,3060.9,3059.5,0.002]
[1768919854332,2.813294,3060.8,3059.5,0.002]
[1768919854533,6.23745558,3060.9,3059.5,0.002]
[1768919854534,9.46259358,3060.6,3059.5,0.002]
[1768919854706,6.23745558,3060.6,3059.0,0.5]
[1768919854899,3.225138,3060.5,3059.0,0.5]
[1768919855100,6.23745558,3060.6,3059.0,0.499]
[1768919855101,6.53106825,3060.3,3059.0,0.499]
[1768919855839,6.53106825,3060.3,3058.7,6.5387256]
[1768919856051,6.53106825,3060.3,3058.8,0.499]
[1768919856351,13.06637523,3060.3,3058.0,6.33646037]
[1768919856502,1.30663752,3060.2,3058.6,3.26944608]
[1768919856706,6.53106825,3060.3,3058.6,9.80838546]
[1768919857098,9.79880072,3060.3,3058.6,6.53891577]
[1768919857303,6.45469171,3060.3,3058.8,6.33646037]
[1768919857501,6.73345558,3061.6,3059.1,2.82273507]
[1768919857745,9.50372158,3061.6,3059.2,15.986467]
[1768919857923,9.50372158,3061.6,3059.4,9.80584428]
[1768919857924,6.23745558,3061.6,3059.4,9.80584428]
[1768919858452,6.23745558,3061.6,3059.5,0.499]
[1768919858453,6.23745558,3061.4,3059.5,0.499]
[1768919858811,2.82273507,3062.1,3059.6,3.090857]
[1768919858812,6.23745558,3062.0,3059.6,3.090857]
[1768919859011,6.23745558,3062.0,3059.7,22.14097]
[1768919859505,3.26708176,3061.8,3059.7,2.494]
[1768919859706,3.26708176,3061.8,3059.8,1.03167351]
[1768919859909,3.26708176,3061.8,3059.9,9.80424195]
[1768919859910,0.001,3061.8,3059.9,9.80424195]
[1768919860104,0.001,3061.8,3059.9,6.5361613]
[1768919860333,6.23845558,3061.8,3059.9,6.5361613]
[1768919860531,6.23845558,3061.8,3060.0,0.5]
[1768919860837,6.23845558,3061.8,3058.5,3.26954824]
[1768919860838,6.23745558,3061.5,3058.5,3.26954824]
[1768919861058,6.23745558,3061.5,3058.3,6.31181698]
[1768919861059,6.23745558,3060.9,3058.6,0.32695482]
[1768919861258,6.23745558,3060.9,3059.0,3.26896781]
[1768919861569,6.23745558,3060.9,3058.7,0.5]
[1768919861865,1.40201907,3061.4,3059.1,2.82273507]
[1768919861866,10.40996668,3061.4,3059.1,2.82273507]
[1768919862073,6.23745558,3061.3,3059.2,0.499]
[1768919862763,6.23745558,3061.3,3059.3,0.499]
[1768919862927,0.497,3061.8,3059.3,0.499]
[1768919863125,0.001,3061.8,3059.4,7.30201041]
[1768919863353,3.26709935,3061.8,3059.8,6.42330851]
[1768919863623,0.001,3061.8,3059.9,6.42330851]
[1768919863823,3.26444155,3063.4,3059.8,2.82004002]
[1768919863824,6.49495795,3063.2,3060.7,19.49121431]
[1768919864023,6.49495795,3063.8,3061.0,9.24234853]
[1768919864259,6.49495795,3063.8,3060.8,0.499]
[1768919864260,6.49495795,3063.8,3061.6,0.128]
[1768919864458,6.49495795,3063.8,3061.8,0.128]
[1768919864971,6.49495795,3063.8,3061.9,0.499]
[1768919865179,6.49495795,3063.8,3062.0,0.499]
[1768919865459,0.6494958,3063.7,3062.0,0.499]
[1768919865663,0.6494958,3063.7,3061.2,0.128]
[1768919865963,6.87198792,3063.5,3061.2,3.2666928]
[1768919866161,6.87198792,3063.3,3061.2,3.2666928]
[1768919866331,6.87198792,3063.3,3061.3,0.499]
[1768919866532,6.87198792,3063.3,3061.1,0.92423485]
[1768919866761,3.31604002,3063.4,3059.8,3.43848537]
[1768919866762,6.87198792,3062.8,3061.2,0.499]
[1768919866976,6.87198792,3062.8,3061.3,0.499]
[1768919867137,1.01880279,3063.2,3061.3,0.499]
[1768919867457,1.01880279,3063.2,3061.1,12.6204058]
[1768919867458,6.87298792,3063.5,3061.1,6.53356627]
[1768919867626,6.87298792,3063.5,3061.2,0.499]
[1768919867823,3.2643468,3063.4,3061.3,6.53317218]
[1768919868064,10.13726804,3063.5,3061.3,13.06634436]
[1768919868233,10.13725089,3063.5,3061.3,9.79975827]
[1768919868577,7.88671301,3063.5,3061.4,1.02987583]
[1768919868780,7.88671301,3063.5,3061.5,0.128]
[1768919868781,0.001,3063.5,3061.5,0.128]
[1768919868945,0.001,3063.5,3061.6,2.82004002]
[1768919869886,0.001,3063.5,3061.7,9.79847796]
[1768919870248,0.001,3063.5,3061.8,6.74402435]
[1768919870577,3.26296211,3064.7,3062.1,2.82004002]
[1768919870776,6.87198792,3064.6,3062.1,9.06506437]
[1768919870982,6.87198792,3064.6,3061.9,0.74973803]
[1768919871165,6.87198792,3064.6,3062.0,0.499]
[1768919871482,6.87198792,3064.6,3062.1,0.499]
[1768919871680,6.87198792,3064.4,3062.1,0.499]
[1768919872179,6.87198792,3064.2,3062.2,6.53125204]
[1768919872589,6.87198792,3064.2,3062.3,0.499]
[1768919873486,6.87198792,3064.0,3062.4,0.499]
[1768919873655,0.68719879,3063.9,3062.4,0.499]
[1768919874052,6.52784124,3063.8,3062.4,0.499]
[1768919874482,10.82301562,3063.9,3062.4,0.499]
[1768919874683,0.496,3064.4,3062.4,7.02979972]
[1768919874883,3.26338804,3064.3,3062.4,7.02979972]
[1768919875182,6.52680354,3064.3,3062.4,7.02979972]
[1768919875367,3.26330085,3064.4,3062.4,7.02979972]
[1768919875795,6.5266017,3064.4,3062.4,7.02979972]
[1768919875962,8.21184688,3064.3,3062.5,0.499]
[1768919876283,6.52698908,3064.2,3062.5,3.76422534]
[1768919876486,6.87198792,3064.1,3062.6,0.499]
[1768919876778,6.87198792,3064.1,3062.7,0.499]
[1768919877295,6.87198792,3064.2,3062.4,3.2653808]
[1768919877587,6.87198792,3064.2,3060.4,8.67572565]
[1768919877588,2.295537,3063.9,3061.0,6.24502435]
[1768919877761,4.62024728,3064.1,3060.4,6.24502435]
[1768919877762,6.87198792,3063.3,3060.4,6.24502435]
[1768919877964,6.87198792,3063.2,3060.5,6.74402435]
[1768919878173,6.52933302,3063.1,3060.6,25.03845902]
[1768919878490,6.52933302,3063.1,3060.7,6.24502435]
[1768919878647,8.21212001,3063.0,3060.8,0.90650644]
[1768919878848,6.87198792,3062.9,3060.9,0.499]
[1768919880213,6.87198792,3062.9,3060.1,9.06506437]
[1768919880214,6.87198792,3062.4,3059.6,2.81564595]
[1768919880355,6.70875109,3062.4,3060.1,9.06506437]
[1768919880555,8.03268742,3062.4,3060.2,0.90650644]
[1768919881102,6.52975936,3062.9,3060.9,0.002]
[1768919881402,6.87198792,3062.8,3061.0,0.499]
[1768919881712,6.52976338,3062.9,3060.9,0.002]
[1768919881713,6.87198792,3062.4,3060.9,0.002]
[1768919881860,3.225138,3062.5,3060.9,0.002]
[1768919881861,6.87198792,3062.0,3060.9,0.002]
[1768919882215,10.13727448,3062.6,3060.9,6.53602594]
[1768919882726,13.40256104,3062.6,3060.9,3.26901297]
[1768919883020,6.87198792,3062.5,3061.0,0.498]
[1768919883195,6.87198792,3063.1,3061.0,0.498]
[1768919883498,6.87198792,3063.1,3060.9,0.002]
[1768919883499,6.87198792,3062.7,3061.1,0.498]
[1768919883709,6.87198792,3062.5,3061.2,0.498]
[1768919884330,6.87198792,3062.5,3060.9,0.002]
[1768919884331,6.53082548,3062.4,3061.3,0.498]
[1768919884633,6.87198792,3062.3,3060.9,0.002]
[1768919884773,13.02137622,3062.4,3060.9,0.002]
[1768919884774,6.87198792,3062.0,3060.9,0.002]
[1768919884975,7.55918671,3062.0,3060.9,0.002]
[1768919885494,6.87198792,3061.8,3059.3,3.39669398]
[1768919885693,6.87198792,3061.8,3059.4,3.7665648]
[1768919885898,6.87198792,3061.8,3059.4,0.498]
[1768919886206,3.26658609,3061.3,3059.5,6.53701584]
[1768919886405,6.53189196,3061.9,3059.6,3.47219756]
[1768919886703,6.87198792,3061.9,3059.6,3.47219756]
[1768919886903,13.40260016,3062.5,3060.4,2.76869598]
[1768919887200,13.40260016,3062.5,3060.5,0.498]
[1768919887573,6.87198792,3062.4,3060.1,6.24502435]
[1768919887772,6.87198792,3062.1,3060.2,1.39937203]
[1768919887990,6.87198792,3062.1,3060.2,0.498]
[1768919888406,6.87198792,3061.9,3060.2,3.26775511]
[1768919888610,6.53167864,3062.0,3059.7,3.26820626]
[1768919888611,6.87198792,3061.4,3059.7,3.26820626]
[1768919888782,0.496,3061.6,3060.0,0.498]
[1768919888985,10.13782724,3062.0,3060.2,3.26776027]
[1768919889183,7.88577064,3061.9,3060.3,0.37657603]
[1768919889388,7.88577064,3061.9,3060.3,0.87457603]
[1768919889893,7.88577064,3061.9,3060.3,0.37657603]
[1768919890215,7.88577064,3061.9,3060.4,0.498]
[1768919890377,1.01378272,3061.9,3060.5,3.76543996]
[1768919890572,3.26597926,3061.9,3060.6,0.498]
[1768919890808,6.87198792,3062.5,3060.6,0.498]
[1768919891018,6.87198792,3062.5,3060.6,3.26669598]
[1768919891373,10.13729506,3062.5,3060.6,3.26669598]
[1768919891880,10.13729506,3062.5,3060.1,3.26780483]
[1768919891881,6.87198792,3062.2,3060.4,3.26750404]
[1768919892085,0.496,3062.4,3060.4,3.26750404]
[1768919892086,7.88170051,3062.1,3060.5,0.8247504]
[1768919892393,6.53167864,3062.0,3060.6,3.2673332]
[1768919892571,6.53167864,3062.0,3060.5,0.8247504]
[1768919892778,6.87198792,3061.9,3060.6,0.498]
[1768919892972,2.76869598,3062.5,3060.6,3.26669598]
[1768919892973,6.87198792,3062.5,3060.6,3.26669598]
[1768919893198,10.09712592,3062.9,3060.7,1.33957571]
[1768919893411,6.87198792,3062.8,3061.0,2.76869598]
[1768919893577,3.26445336,3063.3,3061.0,2.76869598]
[1768919893777,6.52892571,3063.3,3061.0,9.01372033]
[1768919893980,6.87198792,3063.2,3060.8,0.002]
[1768919894208,0.001,3062.2,3060.8,0.002]
[1768919894389,0.001,3062.2,3060.9,0.498]
[1768919895116,0.001,3062.2,3060.8,6.5362394]
[1768919895117,6.96454858,3062.1,3060.8,0.5]
[1768919896378,10.2303879,3062.0,3060.8,0.5]
[1768919896691,13.49622722,3062.0,3060.8,0.5]
[1768919896889,0.001,3062.2,3060.8,0.5]
[1768919898312,0.001,3062.2,3060.9,6.53402594]
[1768919898497,0.001,3062.2,3060.9,9.80103891]
[1768919898810,6.96454858,3062.1,3060.9,0.498]
[1768919898975,0.97342446,3062.0,3060.9,0.498]
[1768919899181,0.001,3062.2,3061.0,15.15347024]
[1768919899378,3.26459579,3063.2,3061.1,5.331978]
[1768919899607,13.49374016,3063.2,3061.0,7.05279626]
[1768919899818,10.22914437,3063.2,3061.0,7.05279626]
[1768919900012,10.22914437,3063.2,3060.8,6.5361846]
[1768919900013,6.96454858,3063.2,3060.8,6.5361846]
[1768919900218,1.62622008,3063.1,3061.0,7.05279626]
[1768919900512,6.96454858,3063.3,3061.2,9.8000784]
[1768919900714,6.96454858,3063.3,3061.2,13.0667712]
[1768919900934,6.96454858,3063.9,3061.7,7.05279626]
[1768919901083,0.17048959,3064.4,3062.5,2.76869598]
[1768919901406,3.2624411,3065.2,3062.9,2.76869598]
[1768919901407,6.52507264,3065.1,3062.9,2.76869598]
[1768919901716,6.52507264,3065.1,3062.8,7.947836]
[1768919901717,6.96454858,3065.0,3062.8,7.947836]
[1768919901922,6.96454858,3064.6,3062.9,0.498]
[1768919902121,6.96454858,3064.6,3062.3,0.128]
[1768919902280,6.96454858,3064.6,3062.4,0.498]
[1768919902484,2.76869598,3064.9,3062.5,3.26530612]
[1768919902485,6.96454858,3064.4,3062.5,3.26530612]
[1768919902827,6.96454858,3063.6,3061.5,7.05279626]
[1768919903026,6.96454858,3063.6,3061.9,3.26586027]
[1768919903391,6.96454858,3063.6,3061.6,0.498]